Cogmind - Beta 15 @@@ ROGUE MODE // 2025.05.29 @ 23:33:21 Player: bgdn01 Result: Destroyed by G-34 Mercenary with Small Laser Performance ------------- Evolutions (1) 500 Regions Visited (3) 600 Robots Destroyed (20) 100 Value Destroyed (667) 667 Prototype IDs (0) 0 Alien Tech Used (0) 0 Bonus (0) 0 TOTAL SCORE: 1867 Bonus ------- None Cogmind --------- Core Integrity 0/400 Matter 289/300 Energy 100/100 System Corruption 0% Temperature Cool (6) Movement Core (200) Ox3 Location -9/Storage Parts ------- > --- POWER (1) -------- (None) > --- PROPULSION (4) --- (None) > --- UTILITY (2) ------ Medium Storage Unit Signal Interpreter > --- WEAPON (2) ------- (None) > --- INVENTORY (10) --- Ion Engine Ion Engine Light Ion Engine Aluminum Leg Large Storage Unit Light Armor Plating Heavy Assault Rifle Heavy Assault Rifle Heavy Assault Rifle Heavy Assault Rifle Peak State ------------ > --- POWER ------------ Improved Ion Engine > --- PROPULSION ------- Aluminum Leg Aluminum Leg Aluminum Leg Aluminum Leg > --- UTILITY ---------- Medium Storage Unit Signal Interpreter > --- WEAPON ----------- Heavy Assault Rifle Heavy Assault Rifle > --- INVENTORY -------- Ion Engine Ion Engine Light Ion Engine Aluminum Leg Large Storage Unit Light Armor Plating Heavy Assault Rifle Heavy Assault Rifle Heavy Assault Rifle Heavy Assault Rifle [Rating: 13] Favorites ----------- Power Ion Engine Engine Ion Engine Propulsion Aluminum Leg Leg Aluminum Leg Utility Medium Storage Unit Storage Medium Storage Unit Processor Signal Interpreter Weapon Heavy Assault Rifle Energy Gun Small Laser Ballistic Gun Heavy Assault Rifle Build | -11 -10 -9 -9 ------- Run | Yrd Mat Mat Sto Slots Evolved 2 | . . 2 . Power . | . . . . Propulsion 2 | . . 2 . Utility . | . . . . Weapon . | . . . . Parts Attached 22 | 6 9 6 1 Power 4 | 1 1 2 . Engine 4 | 1 1 2 . Core . | . . . . Reactor . | . . . . Propulsion 9 | 2 3 3 1 Treads . | . . . . Leg 9 | 2 3 3 1 Wheel . | . . . . Hover . | . . . . Flight . | . . . . Utility 4 | 1 3 . . Device . | . . . . Storage 3 | 1 2 . . Processor 1 | . 1 . . Hackware . | . . . . Protection . | . . . . Artifact . | . . . . Weapon 5 | 2 2 1 . Energy Gun 2 | 2 . . . Energy Cannon . | . . . . Ballistic Gun 3 | . 2 1 . Ballistic Cannon . | . . . . Launcher . | . . . . Special Weapon . | . . . . Impact Weapon . | . . . . Slashing Weapon . | . . . . Piercing Weapon . | . . . . Special Melee Weapon . | . . . . Unidentified Prototypes . | . . . . Parts Lost 9 | . . 2 7 Power 1 | . . . 1 Propulsion 6 | . . 2 4 Utility . | . . . . Weapon 2 | . . . 2 Highest Loss Streak 7 | . . 2 7 To Critical Strikes . | . . . . Average Backups 7 | . 7 8 10 Power 1 | . 1 2 3 Propulsion 2 | . 3 2 1 Utility 1 | . . 1 2 Weapon 1 | . 1 2 4 Tool/Special . | . . . . Unused Backups 6 | . 1 . 5 Power 1 | . . . 1 Propulsion 1 | . . . 1 Utility 1 | . . . 1 Weapon 3 | . 1 . 2 Tool/Special . | . . . . Average Slot Usage (%) 94 | . 94 97 86 Engine 12 | . 14 11 8 Leg 34 | . 28 43 37 Storage 12 | . 14 11 11 Processor 9 | . 8 11 11 Energy Gun 4 | . 8 . . Ballistic Gun 19 | . 19 20 17 Peak Build Rating 13 | 6 10 13 13 Average Rating 9 | 4 8 11 11 On Entrance 7 | . 6 10 13 Naked Turns . | . . . . Heaviest Build 33 | 13 33 23 23 Greatest Support 40 | 20 20 40 40 Greatest Overweight (x) 1 | . 1 . . Average Overweight (x) . | . . . . Largest Inventory Capacity 15 | 8 15 10 10 Average Capacity 9 | 7 9 10 10 Most Carried 10 | 1 10 10 10 Average Carried 7 | . 7 8 10 Final Capacity 10 | 8 10 10 10 Final Carried 10 | 1 10 10 10 Class Distribution -------------------- 60% | Mutant 39% | Scavenger-Mutant Dominant Class ---------------- Mutant | -10/Materials Scavenger-Mutant | -9/Materials Scavenger-Mutant | -9/Storage Resources | -11 -10 -9 -9 ----------- Run | Yrd Mat Mat Sto Matter Collected 646 | 199 199 203 45 Remotely . | . . . . Salvage Created 767 | . 338 284 145 Parts 54 | . 17 29 8 Haulers Intercepted . | . . . . Recyclers Shooed . | . . . . Parts Field Recycled . | . . . . Retrieved Matter . | . . . . Parts Self-Destructed . | . . . . Prevented . | . . . . Kills | -11 -10 -9 -9 ------- Run | Yrd Mat Mat Sto Combat Hostiles Destroyed 19 | . 10 6 3 Guns 18 | . 9 6 3 Classes Destroyed 4 | . 2 2 . Watcher 1 | . . 1 . Swarmer 4 | . 3 1 . Grunt 10 | . 7 1 2 Sentry 5 | . . 4 1 Best Kill Streak 4 | . 4 4 2 Combat Bots Only 4 | . 4 2 2 Max Kills in Single Turn 1 | . 1 1 1 Gunslinging . | . . . . Exploded . | . . . . Melee . | . . . . Uniques/NPCs Destroyed . | . . . . Combat | -11 -10 -9 -9 -------- Run | Yrd Mat Mat Sto Hostile Shots Fired 187 | . 57 44 86 Missed 39 | . 11 9 19 Hits 148 | . 46 35 67 Projectile 148 | . 46 35 67 Critical Strikes 5 | . 1 1 3 Damage Taken 1858 | . 450 472 936 Core 494 | . 91 73 330 Absorbed by Shields . | . . . . Regen/Repaired (Parts) 66 | . . 66 . Core Remaining (%) 81 | 100 63 . . Volleys Fired 64 | . 30 24 10 Largest 2 | . 2 2 2 Hottest 90 | . 90 46 46 Shots Fired 127 | . 60 48 19 Gun 127 | . 60 48 19 Cannon . | . . . . Launcher . | . . . . Special . | . . . . Kinetic 89 | . 22 48 19 Thermal 38 | . 38 . . Explosive . | . . . . Electromagnetic . | . . . . Robot Hit Streak 11 | . 9 7 11 Robot Miss Streak 5 | . 5 3 1 Penetration Max . | . . . . Secondary Targets 2 | . 1 . 1 Max Gunslinging Chain 1 | . 1 . 1 Shots Hit Robots 81 | . 35 31 15 Core Hits 32 | . 15 11 6 Critical Kills . | . . . . Critical Parts Destroyed 2 | . . 2 . Critical Strikes 3 | . 1 2 . Burn 1 | . 1 . . Destroy 2 | . . 2 . Melee Attacks . | . . . . Impact . | . . . . Slashing . | . . . . Piercing . | . . . . Sneak Attacks . | . . . . Combat Hostiles . | . . . . Follow-up Attacks . | . . . . Damage Inflicted 1149 | . 459 462 228 Guns 1141 | . 459 454 228 Cannons . | . . . . Explosions . | . . . . Melee . | . . . . Ramming 8 | . . 8 . Kinetic 881 | . 199 454 228 Thermal 260 | . 260 . . Explosive . | . . . . Electromagnetic . | . . . . Impact . | . . . . Slashing . | . . . . Piercing . | . . . . Highest Corruption . | . . . . Average Corruption . | . . . . Corruption Purged . | . . . . Corruption Blocked . | . . . . Overload Shots . | . . . . Overflow Damage . | . . . . Projectiles . | . . . . Explosions . | . . . . Melee . | . . . . Knockbacks . | . . . . Impact . | . . . . Kinetic . | . . . . Secondary . | . . . . Self-Inflicted Damage . | . . . . Shots . | . . . . Rammed . | . . . . Targets Rammed 1 | . . 1 . Kicked 1 | . . 1 . Crushed . | . . . . Highest Temperature 300 | . 300 8 23 Average Temperature 104 | . 125 2 8 Received Heat Transfer 660 | . 159 132 369 Siege Activations . | . . . . Martial Activations . | . . . . Shielding Activations . | . . . . Robots Disrupted . | . . . . Combat Hostiles . | . . . . Robots Corrupted . | . . . . Combat Hostiles . | . . . . Parts Fried . | . . . . Impact Corruptions . | . . . . Robots Melted 1 | . 1 . . Combat Hostiles 1 | . 1 . . Parts Melted 1 | . 1 . . Heat Transferred 756 | . 756 . . Parts Sabotaged . | . . . . Parts Stolen . | . . . . Parts Stripped . | . . . . Power Chain Reactions . | . . . . Alert | -11 -10 -9 -9 ------- Run | Yrd Mat Mat Sto Maximum Alert Level . | . . . . Low Security (%) 100 | 100 100 100 100 Level 1 . | . . . . Level 2 . | . . . . Level 3 . | . . . . Level 4 . | . . . . Level 5 . | . . . . High Security . | . . . . Max Security . | . . . . Peak Influence 97 | . 97 93 59 Initial 39 | . . 30 39 Average 31 | . 36 27 33 Influence Increases 558 | . 273 215 70 Destroy 0b10 Robot/C 380 | . 200 120 60 Destroy 0b10 Robot/NC 5 | . . 5 . Destroy Leader 92 | . 40 42 10 Successful Hack 20 | . 18 2 . Disable Machine 30 | . . 30 . Destroy Structure 1 | . . 1 . Lose Combat Pursuer 30 | . 15 15 . Influence Decreases 558 | . 200 195 163 Entered New Map 97 | . . 43 54 Time Decay 372 | . 200 132 40 Lost Part 89 | . . 20 69 Squads Dispatched 4 | . 1 1 2 Investigation 1 | . 1 . . Extermination . | . . . . Reinforcement 2 | . . 1 1 Assault . | . . . . Garrison 1 | . . . 1 Intercept . | . . . . Searches Triggered . | . . . . Construction Impeded . | . . . . Haulers Reinforced . | . . . . Active Scanning Responses . | . . . . Cargo Convoy Interrupts . | . . . . Stealth | -11 -10 -9 -9 --------- Run | Yrd Mat Mat Sto Distress Signals 4 | . . 3 1 Communications Jammed . | . . . . Distress Signals . | . . . . Times Spotted 32 | . 13 10 9 Peak Tracking Total 6 | . 4 5 6 Tactical Retreats 2 | . 1 1 . Traps | -11 -10 -9 -9 ------- Run | Yrd Mat Mat Sto Traps Triggered 1 | . . 1 . Indirectly . | . . . . Trap Hack Attempts . | . . . . Triggered . | . . . . Disarmed . | . . . . Reprogrammed . | . . . . Reused . | . . . . Traps Extracted . | . . . . Installed . | . . . . Triggered . | . . . . Machines | -11 -10 -9 -9 ---------- Run | Yrd Mat Mat Sto Machines Disabled 2 | . . 2 . Max in Single Turn 1 | . . 1 . Machines Repaired . | . . . . Machines Dismantled . | . . . . Machines Sabotaged . | . . . . Overloaded Fab Kills . | . . . . Hacking | -11 -10 -9 -9 --------- Run | Yrd Mat Mat Sto Machines Accessed 9 | . 5 3 1 Terminals 7 | . 4 2 1 Fabricators . | . . . . Repair Stations 1 | . . 1 . Recycling Units 1 | . 1 . . Scanalyzers . | . . . . Garrison Access . | . . . . Total Hacks 23 | . 13 6 4 Successful 12 | . 6 4 2 Failed 11 | . 7 2 2 Catastrophic . | . . . . Database Lockouts . | . . . . Manual . | . . . . Terminals 20 | . 12 4 4 Fabricators . | . . . . Repair Stations 2 | . . 2 . Recycling Units 1 | . 1 . . Scanalyzers . | . . . . Garrison Access . | . . . . Terminal Hacks 9 | . 5 2 2 Locate Traps 5 | . 3 1 1 Zone Layout 4 | . 2 1 1 Fabricator Hacks . | . . . . Repair Station Hacks 2 | . . 2 . Scan Component 1 | . . 1 . Repair 1 | . . 1 . Recycling Unit Hacks 1 | . 1 . . Report Inventory 1 | . 1 . . Scanalyzer . | . . . . Garrison Access Hacks . | . . . . Unauthorized Hacks . | . . . . Terminals . | . . . . Fabricators . | . . . . Repair Stations . | . . . . Recycling Units . | . . . . Scanalyzers . | . . . . Garrison Access . | . . . . Data Cores Recovered . | . . . . Used . | . . . . Hacking Detections 6 | . 3 2 1 Full Trace Events 2 | . 1 1 . Feedback Events . | . . . . Feedback Blocked . | . . . . Robot Schematics Acquired . | . . . . Robots Built . | . . . . Authchips . | . . . . Time . | . . . . Total Robot Build Rating . | . . . . Part Schematics Acquired . | . . . . Parts Built . | . . . . Authchips . | . . . . Time . | . . . . Total Part Build Rating . | . . . . Parts Repaired 1 | . . 1 . Time 32 | . . 32 . Parts Recycled . | . . . . Recycled Matter . | . . . . Retrieved Matter . | . . . . Retrieved Components . | . . . . Parts Scanalyzed . | . . . . Part Schematics Acquired . | . . . . Parts Damaged . | . . . . Bothacking | -11 -10 -9 -9 ------------ Run | Yrd Mat Mat Sto Used RIF Installer . | . . . . Robots Hacked . | . . . . Non-combat . | . . . . Combat . | . . . . Robot Hacks Applied . | . . . . Relay Couplers Released . | . . . . Fabnet Peak Effective % . | . . . . Robots Rewired . | . . . . Allies Hacked . | . . . . Hacks Repelled . | . . . . Allies | -11 -10 -9 -9 -------- Run | Yrd Mat Mat Sto Total Allies . | . . . . Largest Group . | . . . . Highest-Rated Group . | . . . . Highest-Rated Ally . | . . . . Total Orders . | . . . . Ally Attacks . | . . . . Total Damage . | . . . . Kills . | . . . . Allies Corrupted . | . . . . Allies Melted . | . . . . Intel | -11 -10 -9 -9 ------- Run | Yrd Mat Mat Sto Active Infowar (turns) . | . . . . Robot Analysis Total . | . . . . Derelict Logs Recovered . | . . . . Drone Launches . | . . . . Drone Recoveries . | . . . . Exploration | -11 -10 -9 -9 ------------- Run | Yrd Mat Mat Sto Turns Passed 1170 | 46 637 398 89 Spaces Moved 582 | 32 297 220 33 Core 2 | 2 . . . Treads . | . . . . Legs 580 | 30 297 220 33 Wheels . | . . . . Hover . | . . . . Flight . | . . . . Fastest Speed 50 | 50 120 120 120 Average Speed 144 | 115 168 120 120 Slowest Speed 190 | 120 190 120 120 Overloaded Moves . | . . . . Propulsion Burnouts . | . . . . Robots Hopped . | . . . . Potential Cave-ins . | . . . . Cave-ins Triggered . | . . . . Exploration Rate (%) 22 | 4 44 30 10 Regions Visited 3 Branch Regions 1 Pre-discovered Areas . | . . . . Known Exits Taken 2 | . 1 1 . Unknown Exits Taken 1 | 1 . . . Scrap Searched . | . . . . Spaces Dug . | . . . . Terrain Destroyed . | . . . . Melee . | . . . . Projectile . | . . . . AOE . | . . . . Terrain Rammed . | . . . . Walls Destroyed . | . . . . Machines Disabled . | . . . . Actions | -11 -10 -9 -9 --------- Run | Yrd Mat Mat Sto Total 782 | 38 374 306 64 Wait 93 | . 25 49 19 Move 579 | 31 296 219 33 Hop . | . . . . Pick Up 11 | 1 7 3 . Fast Attach 11 | 6 4 1 . Attach 4 | . . 4 . Detach 1 | . 1 . . Swap 9 | . 5 3 1 Drop 9 | . 6 2 1 Fire 64 | . 30 24 10 Melee . | . . . . Ram . | . . . . Kick 1 | . . 1 . Crush . | . . . . Escape Stasis . | . . . . Rewire . | . . . . Trap . | . . . . Miscellaneous . | . . . . Route ------- -11/Scrapyard -10/Materials (discovered 2 exits: *Mat / *Min) -9/Materials (discovered 2 exits: [Mat] / *Sto) -9/Storage History --------- Turn | Location | Event 15 | -11/Scrapyard | Discovered new exit (range 16) 47 | -11/Scrapyard | Entered Materials 301 | -10/Materials | Build established: Mutant 327 | -10/Materials | Discovered new exit (range 16) 397 | -10/Materials | Identified exit to Mines 517 | -10/Materials | Discovered new exit (range 13) 680 | -10/Materials | Identified exit to Materials 684 | -10/Materials | Entered another Materials area 684 | -9/Materials | Evolved 2 slots: Propulsion x2 830 | -9/Materials | Repaired Hvy. Assault Rifle 908 | -9/Materials | Discovered new exit (range 13) 1008 | -9/Materials | Build established: Scavenger-Mutant 1031 | -9/Materials | Discovered new exit (range 13) 1046 | -9/Materials | Identified exit to Storage 1082 | -9/Materials | Entered Storage 1109 | -9/Storage | Garrison activated, responded to threat 1161 | -9/Storage | Core integrity fell below 50% 1167 | -9/Storage | Core integrity fell below 20% 1171 | -9/Storage | Destroyed by G-34 Mercenary with Small Laser Last Messages --------------- 01109_ O-16 Technician calls for garrison support. 01109_ ALERT: Activating Garrison Access S001. 01110_ O-16 Technician uses terminal to summon reinforcements. 01110_ ALERT: Hostiles spotted, dispatching reinforcements to Terminal S004. 01110_ O-16 Technician locks terminal. 01131_ G-34 Mercenary destroyed. 01131_ Switching to secondary target: Y-45 Defender. 01134_ G-34 Mercenary destroyed. 01135_ Critical hit (Burn: +37). 01139_ Acquired 45 matter. 01141_ Dropped Aluminum Leg. 01151_ Aluminum Leg destroyed. 01154_ Hvy. Assault Rifle destroyed. 01155_ Y-45 Defender destroyed. 01155_ Imp. Ion Engine destroyed. 01157_ Hvy. Assault Rifle destroyed. 01157_ Aluminum Leg destroyed. 01163_ Critical hit (Burn: +37). 01169_ Aluminum Leg destroyed. Map ----- +----------------------------------------------------+ | ???????????????????????????????? | | ???????????????????????????????? | | ???????????????????????????????? | | ???????????????????????????????? | | ???????????????????????????????? | | ???????????????????????????????? | | ???????????????????????????????? | | ???????????????????????????????? | | ???????????????????????????????? | | ???????????????????????????????? | | ????? ?????????????????????????? | | ????" "????????????????????????? | | ????" "????????????????????????? | | ????? ????????????????????????? | | ????? ????????????????????????? | | ????? ?????????^??????????????? | | # ##???#^## ?????????? | | # #???# ## "?????????? | | ######Y#########^## "?????????? | | ????# u ^^# "?????????? | | ????# ^+ ?????????? | | ????# [g* # ?????????? | | ????# [%######### # ?????????? | | ????# !#???????# # ?????????? | | ????# #???????# # ?????????? | | ????# @#???????# ### ?????????? | | ????# #########/#?##?????????? | | ????# [## ##???????????? | | ???## YY## """ #???????????? | | ???# # """ ##???????????? | | ???# !% # """ #????????????? | | ???# T / #????????????? | | ???# # """ ##???????????? | | ???# # """ T#???????????? | | ???## ## """ ##???????????? | | ????# ## #????????????? | | ????# o ####" "####????????????? | | ????# #??#"R"#???????????????? | | ????# #??#"""#???????????????? | | ????# #??#####???????????????? | | ????# #??????????????????????? | | ????# #??????????????????????? | | ????#^^^#??????????????????????? | | ????# #??????????????????????? | | ????# #??????????????????????? | | ????# #??????????????????????? | | ????# #??????????????????????? | | ????# #??????????????????????? | | ????# #??????????????????????? | | ????# #??????????????????????? | +----------------------------------------------------+ Best States ------------- Heat Dissipation 28 Energy Generation 12 Energy Capacity 265 Matter Stores 300 Matter Capacity 300 Sight Range 16 Terrain Scan Density 10 Evasion (%) 55 Item Schematics ----------------- None Robot Schematics ------------------ None Fabricated ------------ Nothing Repaired ---------- Hvy. Assault Rifle | 42% | -9/Materials Alien Tech Used ----------------- None Achievements -------------- None Challenges ------------ None Game ------ Seed InsulationTerrorFlail Manual? 0 Play Time 00:15:22 Cumulative 5.8 hours Start 2025.05.29 @ 23:19:19 End 2025.05.29 @ 23:33:21 Sessions 1 Manual Loads 0 Difficulty Rogue Special Mode None Game No. 16 Rogue 16 Adventurer 0 Explorer 0 Win Type - Total 0 Types 0/0/0/0/0/0/0/0/0/0 Lore% 4 Gallery% 7 Achievement% 11 Wizard Run 0 Options --------- Layout 0 ASCII 0 Keyboard 0 Movement Numpad Keybinds 0 Fullscreen 2 Font 18/CogNarrow Map View 38x25 Zoom Use 99% Tactical HUD 1 Map Filters NONE Filters NONE Steam 1 RUN: 369cccf0-a086-46b6-a2d1-eaa3daa04622